fUST/lending_fUST_20250724
["ID","MTS","AMOUNT","RATE_DAILY","PERIOD"]
[374570322,1753359075031,-151.0,0.00024383,7]
[374570323,1753359075041,-151.0,0.00024383,7]
[374570324,1753359075051,-151.0,0.00024383,7]
[374570325,1753359075062,-460.0,0.00024383,2]
[374570326,1753359075072,-421.68,0.00024383,2]
[374570327,1753359075082,-460.0,0.00024383,2]
[374570328,1753359075091,-460.0,0.00024383,2]
[374570329,1753359075102,-530.38,0.00024383,2]
[374570330,1753359075112,-598.54,0.00024383,2]
[374570331,1753359075121,-589.49,0.00024383,2]
[374570332,1753359075134,-2288.96,0.00024383,2]
[374570333,1753359075143,-3226.86,0.00024383,2]
[374570334,1753359075154,-549.71,0.00024383,2]
[374570335,1753359075164,-1346.17,0.00024383,2]
[374570336,1753359075174,-460.0,0.00024383,2]
[374570337,1753359075183,-1622.45,0.00024383,2]
[374570338,1753359075193,-501.83,0.00024383,2]
[374570339,1753359075203,-558.57,0.00024383,2]
[374570340,1753359075213,-1151.1,0.00024383,2]
[374570341,1753359075223,-3987.66,0.00024383,2]
[374570342,1753359075233,-1227.26,0.00024383,2]
[374570343,1753359075243,-599.14,0.00024383,2]
[374570344,1753359075252,-1102.32,0.00024383,2]
[374570345,1753359075262,-643.03,0.00024383,2]
[374570346,1753359075272,-721.5,0.00024383,2]
[374570347,1753359075281,-536.66,0.00024383,2]
[374570348,1753359075290,-460.0,0.00024383,2]
[374570349,1753359075300,-1239.72,0.00024383,2]
[374570350,1753359075310,-474.28,0.00024383,2]
[374570351,1753359075319,-695.52,0.00024383,2]
[374570352,1753359075329,-614.93,0.00024383,2]
[374570353,1753359075338,-602.97,0.00024383,2]
[374570354,1753359075348,-236.55727065,0.00024383,2]
[374570355,1753359075358,-547.38,0.00024383,2]
[374570356,1753359075367,-460.0,0.00024383,2]
[374570357,1753359075377,-570.67,0.00024383,2]
[374570358,1753359075387,-2410.32,0.00024383,2]
[374570359,1753359075397,-573.06,0.00024383,2]
[374570360,1753359075407,-573.59,0.00024383,2]
[374570361,1753359075416,-701.0,0.00024383,2]
[374570362,1753359075426,-5756.37,0.00024383,2]
[374570363,1753359075435,-460.0,0.00024383,2]
[374570364,1753359075445,-1810.46,0.00024383,2]
[374570365,1753359075455,-460.0,0.00024383,2]
[374570366,1753359075464,-707.55,0.00024383,2]
[374570367,1753359075474,-959.34,0.00024383,2]
[374570368,1753359075483,-944.6,0.00024383,2]
[374570369,1753359075492,-460.0,0.00024383,2]
[374570370,1753359075501,-1286.44,0.00024383,2]
[374570371,1753359075511,-533.7,0.00024383,2]
[374570372,1753359075520,-468.85943743,0.00024383,2]
[374570373,1753359075530,-764.53,0.00024383,2]
[374570374,1753359075539,-521.62,0.00024383,2]
[374570375,1753359075548,-2933.32,0.00024383,2]
[374570376,1753359075558,-3445.18,0.00024383,2]
[374570377,1753359075568,-575.0,0.00024383,2]
[374570378,1753359075577,-479.16,0.00024383,2]
[374570379,1753359075587,-179.463855,0.00024383,7]
[374570380,1753359075596,-626.2,0.00024383,2]
[374570381,1753359075606,-1738.24,0.00024383,2]
[374570382,1753359075615,-179.463855,0.00024383,7]
[374570383,1753359075625,-1496.43,0.00024383,2]
[374570384,1753359075636,-460.0,0.00024383,2]
[374570385,1753359075646,-679.0,0.00024384,2]
[374570386,1753359075656,-201.96851347,0.00024384,2]
[374570387,1753359075665,-151.0,0.00024384,2]
[374570388,1753359075675,-519.0,0.00024384,2]
[374570389,1753359075684,-6716.25,0.000244,7]
[374570390,1753359075694,-219.205835,0.000244,7]
[374570391,1753359075703,-219.205835,0.000244,7]
[374570392,1753359075713,-151.336066,0.0002442,9]
[374570393,1753359075722,-716.77,0.00024425,3]
[374570394,1753359075731,-2101.69450456,0.00024452,11]
[374570395,1753359075741,-151.336066,0.0002449,3]
[374570396,1753359075750,-429.7456075,0.00024493,2]
[374570397,1753359075760,-429.7456075,0.00024493,2]
[374570398,1753359075770,-429.7456075,0.00024493,2]
[374570399,1753359075784,-88440.5124592,0.000245,4]
[374570400,1753359075793,-2004.01418139,0.000245,3]
[374570401,1753359075803,-200.0,0.000245,2]
[374570402,1753359075812,-151.0,0.000245,7]
[374570403,1753359075822,-179.759163,0.000245,7]
[374570404,1753359075831,-160.78897,0.000245,7]
[374570405,1753359075841,-160.78897,0.000245,7]
[374570406,1753359075852,-151.0,0.000245,7]
[374570407,1753359075861,-151.0,0.000245,7]
[374570408,1753359075871,-166.172952,0.000245,7]
[374570409,1753359075881,-166.172952,0.000245,7]
[374570410,1753359075891,-151.0,0.000245,7]
[374570411,1753359075900,-151.0,0.000245,7]
[374570412,1753359075910,-384.974475,0.000245,7]
[374570413,1753359075919,-384.974475,0.000245,7]
[374570414,1753359075930,-151.0,0.000245,7]
[374570415,1753359075940,-151.0,0.000245,7]
[374570416,1753359075949,-151.0,0.000245,7]
[374570417,1753359075958,-151.0,0.000245,7]
[374570418,1753359075968,-151.0,0.000245,7]
[374570419,1753359075977,-151.0,0.000245,7]
[374570420,1753359075986,-151.0,0.000245,7]
[374570421,1753359075995,-289.549182,0.000245,7]
[374570422,1753359076005,-289.549182,0.000245,7]
[374570423,1753359076015,-151.0,0.000245,9]
[374570424,1753359076024,-151.0,0.000245,7]
[374570425,1753359076034,-151.0,0.000245,7]
[374570426,1753359076043,-34169.55,0.000245,2]
[374570427,1753359076053,-793.122708,0.000245,7]
[374570428,1753359076062,-793.122708,0.000245,7]
[374570429,1753359076071,-151.0,0.000245,7]
[374570430,1753359076081,-151.0,0.000245,7]
[374570431,1753359076090,-151.0,0.000245,7]
[374570432,1753359076100,-151.0,0.000245,7]
[374570433,1753359076109,-151.0,0.000245,7]
[374570434,1753359076119,-151.0,0.000245,7]
[374570435,1753359076129,-151.342857,0.000245,7]
[374570436,1753359076140,-151.342857,0.000245,7]
[374570437,1753359076150,-151.0,0.000245,7]
[374570438,1753359076160,-151.0,0.000245,7]
[374570439,1753359076170,-314.805231,0.000245,7]
[374570440,1753359076180,-314.805231,0.000245,7]
[374570441,1753359076190,-151.0,0.000245,7]
[374570442,1753359076200,-151.0,0.000245,7]
[374570443,1753359076210,-151.0,0.000245,7]
[374570444,1753359076219,-848.0,0.00024508,2]
[374570445,1753359076229,-500.0,0.0002451,2]
[374570446,1753359076239,-428.582618,0.00024521,2]
[374570447,1753359076248,-716.77,0.00024525,5]
[374570448,1753359076258,-2200.0,0.00024528,2]
[374570449,1753359076268,-179.463855,0.00024529,7]
[374570450,1753359076278,-179.463855,0.00024529,7]
[374570451,1753359076287,-5000.0,0.00024529,30]
[374570452,1753359076297,-5000.0,0.00024529,30]
[374570453,1753359076306,-5000.0,0.00024529,30]
[374570454,1753359076315,-5000.0,0.00024529,30]
[374570455,1753359076325,-5000.0,0.00024529,30]
[374570456,1753359076335,-5000.0,0.00024529,30]
[374570457,1753359076345,-5000.0,0.00024529,30]
[374570458,1753359076355,-151.0,0.00024542,7]
[374570459,1753359076364,-151.0,0.00024542,7]
[374570460,1753359076373,-151.0,0.00024542,7]
[374570461,1753359076383,-151.0,0.00024542,7]
[374570462,1753359076393,-272.6,0.00024556,7]
[374570463,1753359076402,-231.28369723,0.00024559,2]
[374570464,1753359076412,-151.0,0.00024562,7]
[374570465,1753359076422,-500.0,0.00024599,2]
[374570466,1753359076431,-205.0,0.000246,2]
[374570467,1753359076441,-205.0,0.000246,2]
[374570468,1753359076450,-716.77,0.00024625,5]
[374570469,1753359076460,-577.4526085,0.0002463,2]
[374570470,1753359076470,-63359.56618861,0.0002465,2]
[374570471,1753359076480,-151.242856,0.0002465,7]
[374570472,1753359076492,-151.0,0.0002465,7]
[374570473,1753359076502,-151.0,0.0002465,7]
[374570474,1753359076512,-151.0,0.0002465,7]
[374570475,1753359076521,-151.0,0.0002465,7]
[374570476,1753359076531,-300.0,0.00024657,2]
[374570477,1753359076542,-300.0,0.00024657,2]
[374570478,1753359076553,-300.0,0.00024657,2]
[374570479,1753359076562,-300.0,0.00024657,2]
[374570480,1753359076573,-427.9252346,0.00024657,2]
[374570481,1753359076582,-460.0,0.00024657,2]
[374570482,1753359076593,-151.0,0.00024657,7]
[374570483,1753359076605,-557.76496243,0.00024657,2]
[374570484,1753359076616,-530.38,0.00024657,2]
[374570485,1753359076627,-598.54,0.00024657,2]
[374570486,1753359076637,-589.49,0.00024657,2]
[374570487,1753359076647,-2288.96,0.00024657,2]
[374570488,1753359076656,-3226.86,0.00024657,2]
[374570489,1753359076667,-549.71,0.00024657,2]
[374570490,1753359076677,-1346.17,0.00024657,2]
[374570491,1753359076687,-460.0,0.00024657,2]
[374570492,1753359076698,-1622.45,0.00024657,2]
[374570493,1753359076707,-501.83,0.00024657,2]
[374570494,1753359076717,-558.57,0.00024657,2]
[374570495,1753359076726,-1151.1,0.00024657,2]
[374570496,1753359076736,-3987.66,0.00024657,2]
[374570497,1753359076745,-1227.26,0.00024657,2]
[374570498,1753359076755,-599.14,0.00024657,2]
[374570499,1753359076766,-1102.32,0.00024657,2]
[374570500,1753359076779,-643.03,0.00024657,2]
[374570501,1753359076788,-721.5,0.00024657,2]
[374570502,1753359076798,-536.66,0.00024657,2]
[374570503,1753359076944,-354.41743296,0.00024657,2]
[374570504,1753359076956,-1239.72,0.00024657,2]
[374570505,1753359076967,-474.28,0.00024657,2]
[374570506,1753359076977,-695.52,0.00024657,2]
[374570507,1753359076989,-614.93,0.00024657,2]
[374570508,1753359077000,-602.97,0.00024657,2]
[374570509,1753359077010,-547.38,0.00024657,2]
[374570510,1753359077021,-460.0,0.00024657,2]
[374570511,1753359077031,-570.67,0.00024657,2]
[374570512,1753359077041,-2410.32,0.00024657,2]
[374570513,1753359077051,-573.06,0.00024657,2]
[374570514,1753359077061,-573.59,0.00024657,2]
[374570515,1753359077071,-701.0,0.00024657,2]
[374570516,1753359077081,-5756.37,0.00024657,2]
[374570517,1753359077091,-460.0,0.00024657,2]
[374570518,1753359077101,-1810.46,0.00024657,2]
[374570519,1753359077110,-460.0,0.00024657,2]
[374570520,1753359077120,-707.55,0.00024657,2]
[374570521,1753359077130,-959.34,0.00024657,2]
[374570522,1753359077142,-944.6,0.00024657,2]
[374570523,1753359077152,-1286.44,0.00024657,2]
[374570524,1753359077162,-533.7,0.00024657,2]
[374570525,1753359077172,-764.53,0.00024657,2]
[374570526,1753359077181,-151.0,0.00024657,7]
[374570527,1753359077191,-2933.32,0.00024657,2]
[374570528,1753359077201,-151.0,0.00024657,7]
[374570529,1753359077212,-3445.18,0.00024657,2]
[374570530,1753359077222,-575.0,0.00024657,2]
[374570531,1753359077231,-479.16,0.00024657,2]
[374570532,1753359077241,-151.0,0.00024657,7]
[374570533,1753359077251,-1738.24,0.00024657,2]
[374570534,1753359077261,-626.2,0.00024657,2]
[374570535,1753359077272,-1496.43,0.00024657,2]
[374570536,1753359077282,-460.0,0.00024657,2]
[374570537,1753359077293,-151.0,0.00024658,7]
[374570538,1753359077304,-151.0,0.00024658,7]
[374570539,1753359077313,-151.0,0.00024658,7]
[374570540,1753359077323,-151.0,0.00024658,7]
[374570541,1753359077334,-151.0,0.00024658,7]
[374570542,1753359077346,-151.0,0.00024658,7]
[374570543,1753359077357,-151.0,0.00024658,7]
[374570544,1753359077367,-190.094215,0.00024658,7]
[374570545,1753359077377,-159.9507963,0.00024658,2]
[374570546,1753359077390,-306.1586121,0.00024658,2]
[374570547,1753359077399,-306.0,0.00024658,2]
[374570548,1753359077409,-178.2667198,0.00024658,2]
[374570549,1753359077419,-154.6022915,0.00024658,2]
[374570550,1753359077428,-679.0,0.00024658,2]
[374570551,1753359077439,-519.0,0.00024658,2]
[374570552,1753359077448,-589.0,0.00024658,2]
[374570553,1753359077459,-221.1447869,0.00024658,2]
[374570554,1753359077469,-2101.69450456,0.00024659,11]
[374570555,1753359077479,-151.336066,0.00024663,5]
[374570556,1753359077489,-151.336066,0.00024669,6]
[374570557,1753359077498,-500.0,0.00024673,2]
[374570558,1753359077507,-500.0,0.00024687,2]
[374570559,1753359077516,-295.0,0.00024697,2]
[374570560,1753359077526,-6282.55,0.000247,10]
[374570561,1753359077535,-151.336066,0.00024705,7]
[374570562,1753359077545,-716.77,0.00024725,4]
[374570563,1753359077555,-151.0,0.00024725,7]
[374570564,1753359077565,-151.0,0.00024725,7]
[374570565,1753359077574,-151.0,0.00024725,7]
[374570566,1753359077584,-151.336066,0.00024727,30]
[374570567,1753359077594,-500.0,0.00024752,2]
[374570568,1753359077604,-166.67,0.00024764,2]
[374570569,1753359077614,-151.0,0.00024769,7]
[374570570,1753359077623,-151.0,0.00024769,7]
[374570571,1753359077636,-151.0,0.00024769,7]
[374570572,1753359077645,-151.0,0.00024769,7]
[374570573,1753359077655,-151.0,0.00024769,7]
[374570574,1753359077664,-151.0,0.00024769,7]
[374570575,1753359077674,-384.974475,0.00024776,7]
[374570576,1753359077684,-384.974475,0.00024776,7]
[374570577,1753359077694,-151.0,0.00024776,7]
[374570578,1753359077704,-151.0,0.00024776,7]
[374570579,1753359077714,-151.0,0.00024776,7]
[374570580,1753359077723,-151.0,0.00024776,7]
[374570581,1753359077732,-151.0,0.00024776,7]
[374570582,1753359077741,-289.549182,0.00024776,7]
[374570583,1753359077751,-289.549182,0.00024776,7]
[374570584,1753359077760,-151.0,0.00024776,7]
[374570585,1753359077770,-151.0,0.00024776,7]
[374570586,1753359077784,-151.0,0.00024776,7]
[374570587,1753359077793,-151.0,0.00024776,7]
[374570588,1753359077803,-160.78897,0.00024787,7]
[374570589,1753359077813,-160.78897,0.00024787,7]
[374570590,1753359077822,-151.0,0.00024787,7]
[374570591,1753359077833,-166.172952,0.00024787,7]
[374570592,1753359077843,-166.172952,0.00024787,7]
[374570593,1753359077853,-4793.0,0.00024788,7]
[374570594,1753359077862,-2000.0,0.000248,2]
[374570595,1753359077872,-2000.0,0.000248,2]
[374570596,1753359077881,-1101.33,0.000248,7]
[374570597,1753359077891,-793.122708,0.000248,7]
[374570598,1753359077901,-793.122708,0.000248,7]
[374570599,1753359077911,-151.0,0.000248,7]
[374570600,1753359077920,-151.0,0.000248,7]
[374570601,1753359077931,-151.342857,0.000248,7]
[374570602,1753359077941,-151.342857,0.000248,7]
[374570603,1753359077950,-151.0,0.000248,7]
[374570604,1753359077960,-151.0,0.000248,7]
[374570605,1753359077970,-5521.1369782,0.000248,2]
[374570606,1753359077980,-314.805231,0.000248,7]
[374570607,1753359077989,-314.805231,0.000248,7]
[374570608,1753359077999,-202.0,0.0002482,12]
[374570609,1753359078009,-823.0,0.00024821,2]
[374570610,1753359078019,-716.77,0.00024825,2]
[374570611,1753359078028,-8704.45033229,0.0002483,2]
[374570612,1753359078039,-577.6552115,0.00024847,2]
[374570613,1753359078048,-2101.69450456,0.00024866,12]
[374570614,1753359078058,-848.0,0.00024869,2]
[374570615,1753359078068,-500.0,0.00024871,2]
[374570616,1753359078078,-150.14227199,0.00024873,2]
[374570617,1753359078088,-151.336066,0.00024875,30]
[374570618,1753359078097,-179.463855,0.00024875,7]
[374570619,1753359078107,-179.463855,0.00024875,7]
[374570620,1753359078117,-151.336066,0.00024887,5]
[374570621,1753359078127,-160.0,0.00024887,3]
[374570622,1753359078138,-160.0,0.00024887,5]
[374570623,1753359078147,-151.0,0.00024888,7]
[374570624,1753359078157,-151.604884,0.00024888,7]
[374570625,1753359078167,-151.0,0.00024888,7]
[374570626,1753359078176,-151.0,0.00024888,7]
[374570627,1753359078186,-151.0,0.00024888,7]
[374570628,1753359078196,-185648.85233006,0.00024888,2]
[374570629,1753359078206,-151.0,0.00024888,7]
[374570630,1753359078215,-163.455681,0.00024888,7]
[374570631,1753359078225,-151.0,0.00024888,7]
[374570632,1753359078235,-151.0,0.00024888,7]
[374570633,1753359078244,-160.78897,0.00024888,7]
[374570634,1753359078254,-160.78897,0.00024888,7]
[374570635,1753359078272,-151.0,0.00024888,7]
[374570636,1753359078282,-151.0,0.00024888,7]
[374570637,1753359078292,-166.172952,0.00024888,7]
[374570638,1753359078302,-166.172952,0.00024888,7]
[374570639,1753359078312,-151.0,0.00024888,7]
[374570640,1753359078321,-384.974475,0.00024888,7]
[374570641,1753359078331,-384.974475,0.00024888,7]
[374570642,1753359078340,-151.0,0.00024888,7]
[374570643,1753359078350,-151.0,0.00024888,7]
[374570644,1753359078360,-151.0,0.00024888,7]
[374570645,1753359078370,-155.203952,0.00024888,7]
[374570646,1753359078381,-151.0,0.00024888,7]
[374570647,1753359078392,-151.0,0.00024888,7]
[374570648,1753359078402,-151.0,0.00024888,7]
[374570649,1753359078413,-151.0,0.00024888,7]
[374570650,1753359078424,-188.629034,0.00024888,7]
[374570651,1753359078434,-151.0,0.00024888,7]
[374570652,1753359078444,-289.549182,0.00024888,7]
[374570653,1753359078454,-289.549182,0.00024888,7]
[374570654,1753359078465,-151.0,0.00024888,7]
[374570655,1753359078478,-151.0,0.00024888,7]
[374570656,1753359078488,-151.0,0.00024888,7]
[374570657,1753359078497,-151.0,0.00024888,7]
[374570658,1753359078506,-793.122708,0.00024888,7]
[374570659,1753359078516,-793.122708,0.00024888,7]
[374570660,1753359078525,-151.0,0.00024888,7]
[374570661,1753359078535,-151.0,0.00024888,7]
[374570662,1753359078544,-256.524763,0.00024888,7]
[374570663,1753359078554,-151.0,0.00024888,7]
[374570664,1753359078563,-151.0,0.00024888,7]
[374570665,1753359078573,-151.0,0.00024888,7]
[374570666,1753359078583,-305.714176,0.00024888,7]
[374570667,1753359078593,-305.714176,0.00024888,7]
[374570668,1753359078603,-151.342857,0.00024888,7]
[374570669,1753359078613,-151.342857,0.00024888,7]
[374570670,1753359078623,-151.0,0.00024888,7]
[374570671,1753359078633,-151.0,0.00024888,7]
[374570672,1753359078642,-314.805231,0.00024888,7]
[374570673,1753359078652,-314.805231,0.00024888,7]
[374570674,1753359078661,-151.0,0.00024888,7]
[374570675,1753359078671,-151.0,0.00024888,7]
[374570676,1753359078681,-151.0,0.00024888,7]
[374570677,1753359078691,-179.463855,0.00024888,7]
[374570678,1753359078701,-179.463855,0.00024888,7]
[374570679,1753359078710,-200.0,0.00024899,2]
[374570680,1753359078720,-212.0,0.000249,2]
[374570681,1753359078730,-205.0,0.000249,2]
[374570682,1753359078739,-205.0,0.000249,2]
[374570683,1753359078750,-205.0,0.000249,2]
[374570684,1753359078760,-205.0,0.000249,2]
[374570685,1753359078769,-205.0,0.000249,2]
[374570686,1753359078783,-151.0,0.000249,7]
[374570687,1753359078793,-151.0,0.000249,7]
[374570688,1753359078802,-151.183589,0.000249,7]
[374570689,1753359078812,-151.0,0.000249,7]
[374570690,1753359078822,-151.0,0.000249,7]
[374570691,1753359078831,-151.0,0.000249,7]
[374570692,1753359078841,-151.0,0.000249,7]
[374570693,1753359078852,-219.205835,0.000249,7]
[374570694,1753359078861,-219.205835,0.000249,7]
[374570695,1753359078871,-219.205835,0.000249,7]
[374570696,1753359078880,-219.205835,0.000249,7]
[374570697,1753359078890,-151.0,0.000249,7]
[374570698,1753359078900,-151.0,0.000249,7]
[374570699,1753359078910,-151.0,0.000249,7]
[374570700,1753359078919,-151.0,0.000249,7]
[374570701,1753359078934,-151.0,0.000249,7]
[374570702,1753359078944,-151.0,0.000249,7]
[374570703,1753359078953,-151.0,0.000249,7]
[374570704,1753359078963,-151.0,0.000249,7]
[374570705,1753359078972,-151.0,0.000249,7]
[374570706,1753359078981,-151.0,0.000249,7]
[374570707,1753359078993,-151.0,0.000249,7]
[374570708,1753359079003,-151.0,0.000249,7]
[374570709,1753359079012,-215.869112,0.000249,7]
[374570710,1753359079022,-151.0,0.000249,7]
[374570711,1753359079031,-151.0,0.000249,7]
[374570712,1753359079041,-151.0,0.000249,7]
[374570713,1753359079050,-151.0,0.000249,7]
[374570714,1753359079060,-151.0,0.000249,7]
[374570715,1753359079070,-151.0,0.000249,7]
[374570716,1753359079081,-151.0,0.000249,7]
[374570717,1753359079099,-171.750868,0.000249,7]
[374570718,1753359079109,-151.0,0.000249,7]
[374570719,1753359079118,-160.78897,0.000249,7]
[374570720,1753359079129,-160.78897,0.000249,7]
[374570721,1753359079140,-151.0,0.000249,7]
[374570722,1753359079150,-151.0,0.000249,7]
[374570723,1753359079172,-166.172952,0.000249,7]
[374570724,1753359079189,-166.172952,0.000249,7]
[374570725,1753359079198,-151.0,0.000249,7]
[374570726,1753359079209,-384.974475,0.000249,7]
[374570727,1753359079219,-384.974475,0.000249,7]
[374570728,1753359079229,-151.0,0.000249,7]
[374570729,1753359079238,-151.0,0.000249,7]
[374570730,1753359079248,-151.0,0.000249,7]
[374570731,1753359079258,-281.108876,0.000249,7]
[374570732,1753359079268,-151.0,0.000249,7]
[374570733,1753359079278,-151.0,0.000249,7]
[374570734,1753359079288,-151.0,0.000249,7]
[374570735,1753359079298,-151.0,0.000249,7]
[374570736,1753359079307,-289.549182,0.000249,7]
[374570737,1753359079317,-289.549184,0.000249,7]
[374570738,1753359079327,-151.0,0.000249,7]
[374570739,1753359079337,-153.346447,0.000249,7]
[374570740,1753359079346,-151.0,0.000249,7]
[374570741,1753359079357,-151.0,0.000249,7]
[374570742,1753359079367,-151.0,0.000249,7]
[374570743,1753359079377,-151.0,0.000249,7]
[374570744,1753359079387,-151.0,0.000249,7]
[374570745,1753359079397,-151.0,0.000249,7]
[374570746,1753359079407,-793.122708,0.000249,7]
[374570747,1753359079417,-793.122708,0.000249,7]
[374570748,1753359079456,-151.0,0.000249,7]
[374570749,1753359079466,-151.0,0.000249,7]
[374570750,1753359079475,-151.336066,0.000249,2]
[374570751,1753359079485,-151.0,0.000249,7]
[374570752,1753359079495,-151.0,0.000249,7]
[374570753,1753359079505,-305.714176,0.000249,7]
[374570754,1753359079515,-305.714176,0.000249,7]
[374570755,1753359079525,-151.342857,0.000249,7]
[374570756,1753359079534,-151.342857,0.000249,7]
[374570757,1753359079545,-272.6,0.000249,7]
[374570758,1753359079555,-446.3195,0.000249,2]
[374570759,1753359079565,-446.3195,0.000249,2]
[374570760,1753359079574,-151.0,0.000249,7]
[374570761,1753359079583,-151.0,0.000249,7]
[374570762,1753359079593,-99054.67310905,0.000249,2]
[374570766,1753359204424,159.372972,0.00013699,2]
[374570767,1753359515532,858.4266,0.00024,120]
[374570768,1753359526722,-300.0,0.00019077,2]
[374570769,1753359543615,300.0,0.00019077,2]
[374570770,1753359544454,2516.60330457,0.00023,30]
[374570771,1753359578204,-307.83,0.00019077,2]
[374570772,1753359578226,-2685.43938594,0.00019078,2]
[374570773,1753359578249,-186.6766833,0.00019078,2]
[374570774,1753359578270,-349.98120204,0.00019078,2]
[374570775,1753359578303,-29215.07272872,0.00019078,2]
[374570776,1753359602678,300.0,0.00019077,2]
[374570777,1753359626531,2972.3420647,0.000185,2]
[374570779,1753359662519,300.0,0.00019077,2]
[374570780,1753359723687,300.0,0.00019077,2]
[374570781,1753359770596,-4475.7323099,0.00019078,2]
[374570782,1753359783227,300.0,0.00019077,2]
[374570783,1753359790928,699.43184956,0.00019078,2]
[374570785,1753359884332,49.10353064,0.00019077,2]
[374570786,1753359884359,110.89646936,0.00019077,2]
[374570787,1753359902514,300.0,0.00019077,2]
[374570788,1753359902543,300.0,0.00019077,2]
[374570789,1753359904883,300.0,0.00019077,2]
[374570790,1753359905751,300.0,0.00019077,2]
[374570791,1753359908461,500.0,0.00019077,2]
[374570792,1753359908492,500.0,0.00019077,2]
[374570793,1753359908532,500.0,0.00019077,2]
[374570794,1753359908580,500.0,0.00019077,2]
[374570795,1753359908618,445.19039455,0.00019077,2]
[374570796,1753359908653,299.43662364,0.00019077,2]
[374570797,1753359911198,5669.26092588,0.00019078,2]
[374570798,1753359912190,275.21558657,0.00019077,2]
[374570799,1753359931864,2178.39512928,0.00019077,2]
[374570800,1753359937092,-224.78441343,0.00019077,2]
[374570801,1753359937116,-210.79668622,0.00019077,2]
[374570802,1753359937143,-500.0,0.00019077,2]
[374570803,1753359937165,-342.73285446,0.00019077,2]
[374570804,1753359937187,-245.78966884,0.00019078,2]
[374570805,1753359940603,1247.08117508,0.00019077,2]
[374570806,1753359948806,1802.18163094,0.00019077,2]
[374570810,1753360033078,-1019.42323978,0.00019077,2]
[374570811,1753360033098,-792.0,0.00019077,2]
[374570812,1753360033120,-300.0,0.00019077,2]
[374570813,1753360033143,-1563.49845411,0.00019078,2]
[374570814,1753360033172,-661.42717981,0.00019078,2]
[374570815,1753360034084,-101117.64216825,0.00019078,2]
[374570816,1753360034115,-799.64043023,0.00019078,2]
[374570818,1753360037122,-169.48136937,0.00019078,2]
[374570819,1753360039092,-139.72435214,0.00019078,2]
[374570820,1753360039116,-343.23,0.00019168,3]
[374570821,1753360039138,-500.0,0.00019173,2]
[374570822,1753360039161,-503.55156825,0.00019173,2]
[374570823,1753360039182,-500.0,0.00019173,2]
[374570824,1753360039204,-500.0,0.00019173,2]
[374570825,1753360039228,-319.95244849,0.00019173,2]
[374570826,1753360039249,-460.0,0.00019178,2]
[374570827,1753360039270,-460.0,0.00019178,2]
[374570828,1753360039291,-460.0,0.00019178,2]
[374570829,1753360039312,-460.0,0.00019178,2]
[374570830,1753360039333,-460.0,0.00019178,2]